fUSD/lending_fUSD_20250226
["ID","MTS","AMOUNT","RATE_DAILY","PERIOD"]
[354540131,1740562249348,-500.0,0.00041095,14]
[354540133,1740562249357,-10032.81,0.00041095,14]
[354540135,1740562249367,-1000.0,0.00041095,60]
[354540136,1740562249376,-2025.35,0.00041095,14]
[354540138,1740562249389,-1186.82,0.00041095,14]
[354540141,1740562249399,-500.0,0.00041095,14]
[354540143,1740562249408,-500.0,0.00041095,14]
[354540145,1740562249418,-3242.81,0.00041095,14]
[354540147,1740562249427,-500.0,0.00041095,14]
[354540148,1740562249436,-883.94,0.00041095,14]
[354540151,1740562249446,-6284.22,0.00041095,14]
[354540152,1740562249456,-500.0,0.00041095,14]
[354540154,1740562249467,-1561.7,0.00041095,14]
[354540156,1740562249477,-3826.39,0.00041095,14]
[354540158,1740562249486,-2639.26,0.00041095,14]
[354540160,1740562249495,-500.0,0.00041095,14]
[354540162,1740562249505,-500.0,0.00041095,14]
[354540164,1740562249514,-500.0,0.00041095,14]
[354540166,1740562249524,-2938.48,0.00041095,14]
[354540168,1740562249533,-500.0,0.00041095,14]
[354540170,1740562249543,-1993.2,0.00041095,14]
[354540172,1740562249552,-947.96,0.00041095,14]
[354540173,1740562249561,-947.96,0.00041095,14]
[354540174,1740562249570,-6613.9,0.00041095,14]
[354540175,1740562249579,-515.60833162,0.00041095,14]
[354540176,1740562249589,-2256.08,0.00041095,14]
[354540177,1740562249598,-500.0,0.00041095,14]
[354540178,1740562249607,-1863.25,0.00041095,14]
[354540179,1740562249616,-500.0,0.00041095,14]
[354540180,1740562249627,-6855.31,0.00041095,14]
[354540181,1740562249638,-3707.49,0.00041095,14]
[354540182,1740562249647,-584.89,0.00041095,14]
[354540183,1740562249656,-341.54307283,0.00041095,14]
[354540184,1740562249665,-2235.8,0.00041095,14]
[354540185,1740562249674,-6175.63,0.00041095,14]
[354540186,1740562249682,-500.0,0.00041095,14]
[354540187,1740562249692,-4698.93,0.00041095,14]
[354540188,1740562249701,-3863.79,0.00041095,14]
[354540189,1740562249710,-6105.99,0.00041095,14]
[354540190,1740562249719,-500.0,0.00041095,14]
[354540191,1740562249728,-500.0,0.00041095,14]
[354540192,1740562249737,-970.25,0.00041095,14]
[354540193,1740562249746,-2230.91,0.00041095,14]
[354540194,1740562249756,-2663.1,0.00041095,14]
[354540195,1740562249765,-457.67713971,0.00041095,14]
[354540196,1740562249774,-3416.45,0.00041095,14]
[354540197,1740562249783,-504.96204676,0.00041095,14]
[354540198,1740562249792,-2385.53,0.00041095,14]
[354540199,1740562249802,-3807.65,0.00041095,14]
[354540200,1740562249811,-500.0,0.00041095,14]
[354540201,1740562249820,-500.0,0.00041095,14]
[354540202,1740562249829,-1969.87,0.00041095,14]
[354540203,1740562249839,-4508.26,0.00041095,14]
[354540204,1740562249849,-500.0,0.00041095,14]
[354540205,1740562249858,-500.0,0.00041095,14]
[354540206,1740562249867,-1077.7,0.00041095,14]
[354540207,1740562249876,-508.52046026,0.00041095,14]
[354540208,1740562249886,-7628.66,0.00041095,14]
[354540209,1740562249895,-981.96,0.00041095,14]
[354540210,1740562249904,-500.0,0.00041095,14]
[354540211,1740562249913,-3550.65,0.00041095,14]
[354540212,1740562249922,-2285.8,0.00041095,14]
[354540213,1740562249931,-1644.25,0.00041095,14]
[354540214,1740562249940,-500.0,0.00041095,14]
[354540215,1740562249949,-1889.09,0.00041095,14]
[354540216,1740562249959,-2195.78,0.00041095,14]
[354540217,1740562249968,-502.90684983,0.00041095,14]
[354540218,1740562249976,-1763.51,0.00041095,7]
[354540219,1740562249985,-500.0,0.00041095,14]
[354540220,1740562249994,-500.0,0.00041095,14]
[354540221,1740562250003,-4788.67,0.00041095,14]
[354540222,1740562250012,-502.08417103,0.00041095,14]
[354540223,1740562250021,-6065.99,0.00041095,14]
[354540224,1740562250030,-650.69,0.00041095,14]
[354540225,1740562250039,-500.0,0.00041095,14]
[354540226,1740562250048,-7114.01,0.00041095,14]
[354540227,1740562250058,-7778.13,0.00041095,14]
[354540228,1740562250067,-2240.31,0.00041095,14]
[354540229,1740562250076,-500.0,0.00041095,14]
[354540230,1740562250084,-500.0,0.00041095,14]
[354540231,1740562250093,-4684.11,0.00041095,14]
[354540232,1740562250102,-2269.81,0.00041095,14]
[354540233,1740562250111,-901.33,0.00041095,14]
[354540234,1740562250119,-3111.28,0.00041095,14]
[354540235,1740562250128,-1494.59,0.00041095,14]
[354540236,1740562250137,-1047.87,0.00041095,14]
[354540237,1740562250146,-500.0,0.00041095,14]
[354540238,1740562250155,-500.0,0.00041095,14]
[354540239,1740562250164,-379.8233233,0.00041095,14]
[354540240,1740562250173,-1182.9,0.00041095,7]
[354540241,1740562250182,-500.0,0.00041095,14]
[354540242,1740562250191,-500.0,0.00041095,14]
[354540243,1740562250200,-610.7,0.00041095,14]
[354540244,1740562250209,-500.0,0.00041095,14]
[354540245,1740562250218,-3682.24,0.00041095,14]
[354540246,1740562250227,-500.0,0.00041095,14]
[354540247,1740562250235,-500.0,0.00041095,14]
[354540248,1740562250244,-500.0,0.00041095,14]
[354540249,1740562250253,-500.0,0.00041095,14]
[354540250,1740562250262,-1922.69,0.00041095,14]
[354540251,1740562250271,-500.84205384,0.00041095,14]
[354540252,1740562250282,-356.14100786,0.00041117,15]
[354540253,1740562250295,-175.75,0.00041123,2]
[354540254,1740562250308,-1565.57673346,0.00041178,15]
[354540255,1740562250317,-330.19,0.0004132,120]
[354540256,1740562250326,-2521.01,0.00041343,9]
[354540257,1740562250337,-4094.21305668,0.00041349,4]
[354540258,1740562250358,-642.24,0.00041358,14]
[354540259,1740562250370,-356.14100786,0.00041361,15]
[354540260,1740562250381,-642.24,0.00041368,14]
[354540261,1740562250390,-151.0,0.00041368,14]
[354540262,1740562250399,-1154.773994,0.00041369,14]
[354540263,1740562250409,-2834.45711,0.00041369,14]
[354540264,1740562250418,-500.0,0.00041369,14]
[354540265,1740562250427,-500.0,0.00041369,14]
[354540266,1740562250437,-500.0,0.00041369,14]
[354540267,1740562250446,-500.0,0.00041369,14]
[354540268,1740562250456,-500.0,0.00041369,14]
[354540269,1740562250468,-500.0,0.00041369,14]
[354540270,1740562250478,-500.0,0.00041369,14]
[354540271,1740562250487,-500.0,0.00041369,14]
[354540272,1740562250496,-500.0,0.00041369,14]
[354540273,1740562250506,-500.0,0.00041369,14]
[354540274,1740562250515,-500.0,0.00041369,14]
[354540275,1740562250524,-500.0,0.00041369,14]
[354540276,1740562250533,-492.00013696,0.00041369,14]
[354540277,1740562250544,-500.0,0.00041369,14]
[354540278,1740562250554,-500.0,0.00041369,14]
[354540279,1740562250563,-500.0,0.00041369,14]
[354540280,1740562250572,-500.0,0.00041369,14]
[354540281,1740562250581,-500.0,0.00041369,14]
[354540282,1740562250590,-635.01419321,0.00041369,14]
[354540283,1740562250599,-838.51,0.00041369,14]
[354540284,1740562250608,-500.0,0.00041369,14]
[354540285,1740562250617,-500.0,0.00041369,14]
[354540286,1740562250626,-500.0,0.00041369,14]
[354540287,1740562250635,-500.0,0.00041369,14]
[354540288,1740562250645,-500.0,0.00041369,14]
[354540289,1740562250654,-1541.78,0.00041369,14]
[354540290,1740562250663,-500.0,0.00041369,14]
[354540291,1740562250672,-500.0,0.00041369,14]
[354540292,1740562250681,-500.0,0.00041369,14]
[354540293,1740562250691,-500.0,0.00041369,14]
[354540294,1740562250700,-2580.44,0.00041369,14]
[354540295,1740562250710,-500.0,0.00041369,14]
[354540296,1740562250719,-500.0,0.00041369,14]
[354540297,1740562250728,-336.34279989,0.00041369,14]
[354540298,1740562250737,-1714.82,0.00041369,14]
[354540299,1740562250747,-500.0,0.00041369,14]
[354540300,1740562250756,-500.0,0.00041369,14]
[354540301,1740562250765,-500.0,0.00041369,14]
[354540302,1740562250774,-500.0,0.00041369,14]
[354540303,1740562250784,-500.0,0.00041369,14]
[354540304,1740562250793,-500.0,0.00041369,14]
[354540305,1740562250802,-1657.94,0.00041369,14]
[354540306,1740562250811,-1412.1,0.00041369,14]
[354540307,1740562250820,-586.18621488,0.00041369,14]
[354540308,1740562250829,-500.0,0.00041369,14]
[354540309,1740562250839,-500.0,0.00041369,14]
[354540310,1740562250847,-2261.57,0.00041369,14]
[354540311,1740562250856,-500.0,0.00041369,14]
[354540312,1740562250865,-1597.03,0.00041369,14]
[354540313,1740562250874,-500.0,0.00041369,14]
[354540314,1740562250884,-500.0,0.00041369,14]
[354540315,1740562250893,-950.18,0.00041369,14]
[354540316,1740562250902,-1214.55,0.00041369,14]
[354540317,1740562250911,-500.0,0.00041369,14]
[354540318,1740562250920,-500.0,0.00041369,14]
[354540319,1740562250929,-500.0,0.00041369,14]
[354540320,1740562250938,-1520.45,0.00041369,14]
[354540321,1740562250947,-1430.29,0.00041369,14]
[354540322,1740562250956,-500.0,0.00041369,14]
[354540323,1740562250965,-1225.56,0.00041369,14]
[354540324,1740562250974,-500.0,0.00041369,14]
[354540325,1740562250983,-500.0,0.00041369,14]
[354540326,1740562250993,-752.9,0.00041369,14]
[354540327,1740562251003,-500.0,0.00041369,14]
[354540328,1740562251012,-500.0,0.00041369,14]
[354540329,1740562251021,-500.0,0.00041369,14]
[354540330,1740562251030,-500.0,0.00041369,14]
[354540331,1740562251039,-500.0,0.00041369,14]
[354540332,1740562251048,-2089.54,0.00041369,14]
[354540333,1740562251057,-500.0,0.00041369,14]
[354540334,1740562251066,-500.0,0.00041369,14]
[354540335,1740562251076,-161.372876,0.00041369,14]
[354540336,1740562251085,-1368.24,0.00041369,14]
[354540337,1740562251094,-535.66,0.00041369,14]
[354540338,1740562251103,-500.0,0.00041369,14]
[354540339,1740562251113,-500.0,0.00041369,14]
[354540340,1740562251122,-1108.02,0.00041369,14]
[354540341,1740562251132,-500.0,0.00041369,14]
[354540342,1740562251141,-500.0,0.00041369,14]
[354540343,1740562251150,-500.0,0.00041369,14]
[354540344,1740562251159,-500.0,0.00041369,14]
[354540345,1740562251169,-500.0,0.00041369,14]
[354540346,1740562251178,-1642.8,0.00041369,14]
[354540347,1740562251187,-2339.45,0.00041369,14]
[354540348,1740562251196,-500.0,0.00041369,14]
[354540349,1740562251205,-500.0,0.00041369,14]
[354540350,1740562251214,-500.0,0.00041369,14]
[354540351,1740562251223,-500.0,0.00041369,14]
[354540352,1740562251232,-1633.13,0.00041369,14]
[354540353,1740562251241,-620.36,0.00041369,14]
[354540354,1740562251249,-500.0,0.00041369,14]
[354540355,1740562251259,-500.0,0.00041369,14]
[354540356,1740562251267,-500.0,0.00041369,14]
[354540357,1740562251276,-1105.97,0.00041369,14]
[354540358,1740562251285,-500.0,0.00041369,14]
[354540359,1740562251295,-500.0,0.00041369,14]
[354540360,1740562251304,-500.0,0.00041369,14]
[354540361,1740562251313,-1073.53,0.00041369,14]
[354540362,1740562251322,-500.0,0.00041369,14]
[354540363,1740562251331,-500.0,0.00041369,14]
[354540364,1740562251343,-1041.48,0.00041369,14]
[354540365,1740562251353,-500.0,0.00041369,14]
[354540366,1740562251362,-500.0,0.00041369,14]
[354540367,1740562251371,-500.0,0.00041369,14]
[354540368,1740562251381,-1471.3,0.00041369,14]
[354540369,1740562251390,-500.0,0.00041369,14]
[354540370,1740562251400,-754.56,0.00041369,14]
[354540371,1740562251409,-502.20547793,0.00041369,14]
[354540372,1740562251419,-500.0,0.00041369,14]
[354540373,1740562251428,-824.35,0.00041369,14]
[354540374,1740562251437,-500.0,0.00041369,14]
[354540375,1740562251446,-617.79132065,0.00041369,14]
[354540376,1740562251456,-500.0,0.00041369,14]
[354540377,1740562251468,-500.0,0.00041369,14]
[354540378,1740562251478,-500.0,0.00041369,14]
[354540379,1740562251487,-575.8,0.00041369,14]
[354540380,1740562251497,-500.0,0.00041369,14]
[354540381,1740562251507,-500.0,0.00041369,14]
[354540382,1740562251516,-688.49,0.00041369,14]
[354540383,1740562251640,-1432.24,0.00041369,14]
[354540384,1740562251650,-500.0,0.00041369,14]
[354540385,1740562251659,-508.0407358,0.00041369,14]
[354540386,1740562251668,-1478.34,0.00041369,14]
[354540387,1740562251677,-1413.5,0.00041369,14]
[354540388,1740562251687,-500.0,0.00041369,14]
[354540389,1740562251696,-500.0,0.00041369,14]
[354540390,1740562251705,-2813.37,0.00041369,14]
[354540391,1740562251715,-500.0,0.00041369,14]
[354540392,1740562251724,-500.0,0.00041369,14]
[354540393,1740562251734,-1121.55,0.00041369,14]
[354540394,1740562251743,-1336.12,0.00041369,14]
[354540395,1740562251753,-512.55261922,0.00041369,14]
[354540396,1740562251762,-500.0,0.00041369,14]
[354540397,1740562251771,-548.14,0.00041369,14]
[354540398,1740562251780,-500.0,0.00041369,14]
[354540399,1740562251790,-502.15542727,0.00041369,14]
[354540400,1740562251799,-1263.58,0.00041369,14]
[354540401,1740562251809,-2373.21,0.00041369,14]
[354540402,1740562251818,-500.0,0.00041369,14]
[354540403,1740562251827,-500.0,0.00041369,14]
[354540404,1740562251836,-500.0,0.00041369,14]
[354540405,1740562251846,-1131.53,0.00041369,14]
[354540406,1740562251855,-1756.25,0.00041369,14]
[354540407,1740562251864,-500.0,0.00041369,14]
[354540408,1740562251874,-500.0,0.00041369,14]
[354540409,1740562251883,-500.0,0.00041369,14]
[354540410,1740562251893,-1362.36,0.00041369,60]
[354540411,1740562251902,-500.0,0.00041369,14]
[354540412,1740562251912,-2000.0,0.00041369,120]
[354540413,1740562251921,-500.0,0.00041369,14]
[354540414,1740562251931,-1677.02,0.00041369,14]
[354540415,1740562251939,-2478.84,0.00041369,14]
[354540416,1740562251949,-500.0,0.00041369,14]
[354540417,1740562251958,-500.0,0.00041369,14]
[354540418,1740562251967,-500.0,0.00041369,14]
[354540419,1740562251976,-1048.24,0.00041369,14]
[354540420,1740562251985,-500.0,0.00041369,14]
[354540421,1740562251994,-1151.09,0.00041369,14]
[354540422,1740562252003,-500.0,0.00041369,14]
[354540423,1740562252012,-1736.5,0.00041369,14]
[354540424,1740562252021,-500.0,0.00041369,14]
[354540425,1740562252030,-1799.69,0.00041369,14]
[354540426,1740562252039,-1005.64,0.00041369,14]
[354540427,1740562252048,-500.0,0.00041369,14]
[354540428,1740562252058,-500.0,0.00041369,14]
[354540429,1740562252067,-500.0,0.00041369,14]
[354540430,1740562252076,-2770.85,0.00041369,14]
[354540431,1740562252085,-2703.91,0.00041369,14]
[354540432,1740562252094,-500.0,0.00041369,14]
[354540433,1740562252104,-3010.66,0.00041369,14]
[354540434,1740562252113,-500.0,0.00041369,14]
[354540435,1740562252122,-3390.61,0.00041369,14]
[354540436,1740562252131,-500.0,0.00041369,14]
[354540437,1740562252140,-500.0,0.00041369,14]
[354540438,1740562252155,-500.0,0.00041369,14]
[354540439,1740562252165,-500.0,0.00041369,14]
[354540440,1740562252176,-2352.41,0.00041369,14]
[354540441,1740562252185,-591.76927203,0.00041369,14]
[354540442,1740562252195,-1662.36,0.00041369,14]
[354540443,1740562252204,-4055.23,0.00041369,2]
[354540444,1740562252213,-4214.98,0.00041369,14]
[354540445,1740562252224,-1554.55,0.00041369,14]
[354540446,1740562252233,-500.0,0.00041369,14]
[354540447,1740562252243,-4336.04,0.00041369,14]
[354540448,1740562252252,-500.0,0.00041369,14]
[354540449,1740562252262,-6038.37,0.00041369,14]
[354540450,1740562252272,-1138.76,0.00041369,14]
[354540451,1740562252281,-500.0,0.00041369,14]
[354540452,1740562252291,-4535.93,0.00041369,14]
[354540453,1740562252300,-13546.32,0.00041369,14]
[354540454,1740562252310,-5255.9,0.00041369,14]
[354540455,1740562252319,-517.28167265,0.00041369,14]
[354540456,1740562252328,-500.0,0.00041369,14]
[354540457,1740562252337,-3860.48,0.00041369,14]
[354540458,1740562252351,-1552.77,0.00041369,14]
[354540459,1740562252371,-500.0,0.00041369,14]
[354540460,1740562252393,-6056.22,0.00041369,14]
[354540461,1740562252410,-319.01073114,0.00041369,14]
[354540462,1740562252421,-945.37,0.00041369,14]
[354540463,1740562252430,-12611.7,0.00041369,14]
[354540464,1740562252440,-500.0,0.00041369,14]
[354540465,1740562252449,-4519.68,0.00041369,14]
[354540466,1740562252461,-4842.76,0.00041369,14]
[354540467,1740562252470,-500.0,0.00041369,14]
[354540468,1740562252480,-513.40146948,0.00041369,14]
[354540469,1740562252489,-308.44693161,0.00041369,14]
[354540470,1740562252499,-3788.34,0.00041369,14]
[354540471,1740562252509,-500.0,0.00041369,14]
[354540472,1740562252518,-1867.02,0.00041369,14]
[354540473,1740562252527,-696.44,0.00041369,14]
[354540474,1740562252537,-500.0,0.00041369,14]
[354540475,1740562252547,-500.0,0.00041369,14]
[354540476,1740562252558,-4020.29,0.00041369,14]
[354540477,1740562252567,-2666.81,0.00041369,14]
[354540478,1740562252576,-4836.24,0.00041369,14]
[354540479,1740562252585,-7050.36,0.00041369,14]
[354540480,1740562252594,-225.47064989,0.00041369,14]
[354540481,1740562252603,-1942.27,0.00041369,14]
[354540482,1740562252613,-500.0,0.00041369,14]
[354540483,1740562252622,-2661.66,0.00041369,14]
[354540484,1740562252631,-3893.73,0.00041369,14]
[354540485,1740562252640,-5209.35,0.00041369,14]
[354540486,1740562252649,-500.0,0.00041369,14]
[354540487,1740562252659,-3045.47,0.00041369,14]
[354540488,1740562252668,-2965.79,0.00041369,14]
[354540489,1740562252682,-2584.97,0.00041369,14]
[354540490,1740562252693,-13488.65,0.00041369,14]
[354540491,1740562252703,-7250.75,0.00041369,14]
[354540492,1740562252712,-3932.58,0.00041369,14]
[354540493,1740562252722,-1723.54,0.00041369,14]
[354540494,1740562252732,-4675.01,0.00041369,14]
[354540495,1740562252742,-500.0,0.00041369,14]
[354540496,1740562252752,-1318.56,0.00041369,14]
[354540497,1740562252762,-500.0,0.00041369,14]
[354540498,1740562252772,-4643.74,0.00041369,14]
[354540499,1740562252782,-2359.96,0.00041369,14]
[354540500,1740562252792,-3466.9,0.00041369,14]
[354540501,1740562252804,-500.0,0.00041369,14]
[354540502,1740562252815,-2868.17,0.00041369,14]
[354540503,1740562252826,-151.0,0.00041369,14]
[354540504,1740562252837,-151.0,0.00041369,14]
[354540505,1740562252846,-4805.26,0.00041369,14]
[354540506,1740562252855,-151.0,0.00041369,14]
[354540507,1740562252865,-4360.64,0.00041369,14]
[354540508,1740562252874,-284.807308,0.00041369,14]
[354540509,1740562252884,-2747.66,0.00041369,14]
[354540510,1740562252894,-500.0,0.00041369,14]
[354540511,1740562252903,-1255.41,0.00041369,14]
[354540512,1740562252913,-4549.63,0.00041369,14]
[354540513,1740562252922,-1168.86,0.00041369,14]
[354540514,1740562252932,-500.0,0.00041369,14]
[354540515,1740562252941,-1310.9,0.00041369,14]
[354540516,1740562252950,-4654.95,0.00041369,14]
[354540517,1740562252959,-3041.57,0.00041369,14]
[354540518,1740562252968,-521.95003718,0.00041369,14]
[354540519,1740562252978,-4769.31,0.00041369,14]
[354540520,1740562252987,-5881.78,0.00041369,14]
[354540521,1740562252996,-1278.62,0.00041369,14]
[354540522,1740562253006,-549.83224842,0.00041369,14]
[354540523,1740562253015,-2252.15,0.00041369,14]
[354540524,1740562253024,-834.67,0.00041369,14]
[354540525,1740562253033,-3385.99,0.00041369,14]
[354540526,1740562253043,-2185.89,0.00041369,14]
[354540527,1740562253052,-279.65134043,0.00041369,14]
[354540528,1740562253061,-6750.55,0.00041369,14]
[354540529,1740562253070,-151.0,0.00041369,14]
[354540530,1740562253079,-500.0,0.00041369,14]
[354540531,1740562253088,-151.0,0.00041369,14]
[354540532,1740562253098,-151.0,0.00041369,14]
[354540533,1740562253107,-2582.38,0.00041369,14]
[354540534,1740562253117,-151.0,0.00041369,14]
[354540535,1740562253126,-5678.86,0.00041369,14]
[354540536,1740562253135,-4609.09,0.00041369,14]
[354540537,1740562253145,-5167.24,0.00041369,14]
[354540538,1740562253154,-151.0,0.00041369,14]
[354540539,1740562253163,-158.467402,0.00041369,14]
[354540540,1740562253172,-3628.15,0.00041369,14]
[354540541,1740562253181,-657.33,0.00041369,14]
[354540542,1740562253190,-2158.34,0.00041369,14]
[354540543,1740562253200,-475.82132969,0.00041369,14]
[354540544,1740562253209,-500.0,0.00041369,14]
[354540545,1740562253218,-3904.64,0.00041369,14]
[354540546,1740562253228,-500.0,0.00041369,14]
[354540547,1740562253238,-500.0,0.00041369,14]
[354540548,1740562253247,-500.0,0.00041369,14]
[354540549,1740562253256,-5379.92,0.00041369,14]
[354540550,1740562253265,-1336.16,0.00041369,14]
[354540551,1740562253275,-500.0,0.00041369,14]
[354540552,1740562253284,-2020.07,0.00041369,14]
[354540553,1740562253294,-500.0,0.00041369,14]
[354540554,1740562253303,-566.30383351,0.00041369,14]
[354540555,1740562253313,-500.0,0.00041369,14]
[354540556,1740562253322,-7726.3,0.00041369,14]
[354540557,1740562253331,-1603.79,0.00041369,14]
[354540558,1740562253340,-500.0,0.00041369,14]
[354540559,1740562253349,-500.0,0.00041369,14]
[354540560,1740562253359,-500.0,0.00041369,14]
[354540561,1740562253368,-500.0,0.00041369,14]
[354540562,1740562253377,-806.11,0.00041369,14]
[354540563,1740562253387,-500.0,0.00041369,14]
[354540564,1740562253396,-500.0,0.00041369,14]
[354540565,1740562253405,-500.0,0.00041369,14]
[354540566,1740562253414,-10032.81,0.00041369,14]
[354540567,1740562253423,-1000.0,0.00041369,60]
[354540568,1740562253433,-2025.35,0.00041369,14]
[354540569,1740562253443,-1186.82,0.00041369,14]
[354540570,1740562253452,-500.0,0.00041369,14]
[354540571,1740562253463,-500.0,0.00041369,14]
[354540572,1740562253474,-3242.81,0.00041369,14]
[354540573,1740562253483,-500.0,0.00041369,14]
[354540574,1740562253493,-883.94,0.00041369,14]
[354540575,1740562253503,-6284.22,0.00041369,14]
[354540576,1740562253514,-475.44044458,0.00041369,14]
[354540577,1740562253524,-1561.7,0.00041369,14]
[354540578,1740562253533,-3826.39,0.00041369,14]
[354540579,1740562253544,-2639.26,0.00041369,14]
[354540580,1740562253554,-500.0,0.00041369,14]
[354540581,1740562253563,-500.0,0.00041369,14]
[354540582,1740562253572,-500.0,0.00041369,14]
[354540583,1740562253582,-2938.48,0.00041369,14]
[354540584,1740562253591,-500.0,0.00041369,14]
[354540585,1740562253600,-1993.2,0.00041369,14]
[354540586,1740562253610,-6613.9,0.00041369,14]
[354540587,1740562253619,-2256.08,0.00041369,14]
[354540588,1740562253628,-500.0,0.00041369,14]
[354540589,1740562253638,-1863.25,0.00041369,14]
[354540590,1740562253648,-560.31332206,0.00041369,14]
[354540591,1740562253658,-6855.31,0.00041369,14]
[354540592,1740562253667,-3707.49,0.00041369,14]
[354540593,1740562253676,-584.89,0.00041369,14]
[354540594,1740562253686,-2235.8,0.00041369,14]
[354540595,1740562253696,-6175.63,0.00041369,14]
[354540596,1740562253706,-500.0,0.00041369,14]
[354540597,1740562253716,-4698.93,0.00041369,14]
[354540598,1740562253726,-3863.79,0.00041369,14]
[354540599,1740562253735,-6105.99,0.00041369,14]
[354540600,1740562253744,-500.0,0.00041369,14]
[354540601,1740562253755,-500.0,0.00041369,14]
[354540602,1740562253764,-970.25,0.00041369,14]
[354540603,1740562253773,-2663.1,0.00041369,14]
[354540604,1740562253783,-2230.91,0.00041369,14]
[354540605,1740562253792,-3416.45,0.00041369,14]
[354540606,1740562253802,-2385.53,0.00041369,14]
[354540607,1740562253811,-3807.65,0.00041369,14]
[354540608,1740562253820,-500.0,0.00041369,14]
[354540609,1740562253830,-500.0,0.00041369,14]
[354540610,1740562253839,-1969.87,0.00041369,14]
[354540611,1740562254147,-4508.26,0.00041369,14]
[354540612,1740562254157,-500.0,0.00041369,14]
[354540613,1740562254166,-344.79572524,0.00041369,14]
[354540614,1740562254175,-1077.7,0.00041369,14]
[354540615,1740562254184,-7628.66,0.00041369,14]
[354540616,1740562254194,-981.96,0.00041369,14]
[354540617,1740562254203,-500.0,0.00041369,14]
[354540618,1740562254214,-3550.65,0.00041369,14]
[354540619,1740562254224,-2285.8,0.00041369,14]
[354540620,1740562254233,-1644.25,0.00041369,14]
[354540621,1740562254242,-500.0,0.00041369,14]
[354540622,1740562254252,-1889.09,0.00041369,14]
[354540623,1740562254261,-2195.78,0.00041369,14]
[354540624,1740562254270,-1763.51,0.00041369,7]
[354540625,1740562254279,-500.0,0.00041369,14]
[354540626,1740562254288,-500.0,0.00041369,14]
[354540627,1740562254297,-4788.67,0.00041369,14]
[354540628,1740562254306,-6065.99,0.00041369,14]
[354540629,1740562254315,-650.69,0.00041369,14]
[354540630,1740562254325,-500.0,0.00041369,14]
[354540631,1740562254334,-7114.01,0.00041369,14]
[354540632,1740562254343,-7778.13,0.00041369,14]
[354540633,1740562254352,-2240.31,0.00041369,14]
[354540634,1740562254361,-500.0,0.00041369,14]
[354540635,1740562254370,-500.0,0.00041369,14]
[354540636,1740562254379,-4684.11,0.00041369,14]
[354540637,1740562254389,-2269.81,0.00041369,14]
[354540638,1740562254398,-901.33,0.00041369,14]
[354540639,1740562254407,-3111.28,0.00041369,14]
[354540640,1740562254416,-1494.59,0.00041369,14]
[354540641,1740562254426,-1047.87,0.00041369,14]
[354540642,1740562254435,-500.0,0.00041369,14]
[354540643,1740562254445,-500.0,0.00041369,14]
[354540644,1740562254454,-1182.9,0.00041369,7]
[354540645,1740562254467,-500.0,0.00041369,14]
[354540646,1740562254476,-500.0,0.00041369,14]
[354540647,1740562254486,-610.7,0.00041369,14]
[354540648,1740562254495,-500.0,0.00041369,14]
[354540649,1740562254506,-3682.24,0.00041369,14]
[354540650,1740562254515,-500.0,0.00041369,14]